Cogmind - Beta 13 @@@ ROGUE MODE // 2024.05.11 @ 00:25:23 Player: Cherman0 Result: Destroyed by as-57845 with Assembled Rifle Performance ------------- Evolutions (0) 0 Regions Visited (2) 400 Robots Destroyed (33) 165 Value Destroyed (424) 424 Prototype IDs (5) 100 Alien Tech Used (0) 0 Bonus (0) 0 TOTAL SCORE: 1089 Bonus ------- None Cogmind --------- Core Integrity 0/250 Matter 280/300 Energy 265/265 System Corruption 0% Temperature Cool (70) Movement Treading (160) Location -10/Mines Parts ------- > --- POWER (1) -------- Improved Ion Engine > --- PROPULSION (2) --- Light Treads Light Treads > --- UTILITY (2) ------ Large Storage Unit Hardened Light Armor Plating > --- WEAPON (2) ------- Mace > --- INVENTORY (15) --- Improved Ion Engine Improved Ion Engine Improved Ion Engine Combat Airjet Medium Storage Unit Huge Storage Unit Improved Terrain Scanner Seismic Detector Grenade Launcher Mini Grenade Launcher Peak State ------------ > --- POWER ------------ Improved Ion Engine > --- PROPULSION ------- Light Treads Light Treads > --- UTILITY ---------- Large Storage Unit Hardened Light Armor Plating > --- WEAPON ----------- Heavy EM Pulse Gun Heavy EM Pulse Gun > --- INVENTORY -------- Improved Ion Engine Improved Ion Engine Improved Ion Engine Light Treads Light Treads Medium Storage Unit Improved Terrain Scanner Seismic Detector Hardened Light Armor Plating Medium Laser Assault Rifle Light Cannon Grenade Launcher Mace [Rating: 13] Favorites ----------- Power Improved Ion Engine Engine Improved Ion Engine Propulsion Light Treads Treads Light Treads Leg Aluminum Leg Utility Seismic Detector Device Seismic Detector Storage Medium Storage Unit Protection Hardened Light Armor Plating Weapon Heavy EM Pulse Gun Energy Gun Heavy EM Pulse Gun Ballistic Gun Assault Rifle Ballistic Cannon Light Cannon Launcher Grenade Launcher Impact Weapon Mace Build | -11 -10 -10 ------- Run | Yrd Mat Min Slots Evolved . | . . . Power . | . . . Propulsion . | . . . Utility . | . . . Weapon . | . . . Parts Attached 37 | 4 20 13 Power 2 | . 2 . Engine 2 | . 2 . Core . | . . . Reactor . | . . . Propulsion 6 | 2 2 2 Treads 6 | 2 2 2 Leg . | . . . Wheel . | . . . Hover . | . . . Flight . | . . . Utility 7 | 1 4 2 Device 2 | 1 1 . Storage 2 | . 2 . Processor . | . . . Hackware . | . . . Protection 3 | . 1 2 Artifact . | . . . Weapon 22 | 1 12 9 Energy Gun 12 | . 8 4 Energy Cannon . | . . . Ballistic Gun 2 | 1 . 1 Ballistic Cannon 1 | . . 1 Launcher 4 | . 3 1 Special Weapon . | . . . Impact Weapon 3 | . 1 2 Slashing Weapon . | . . . Piercing Weapon . | . . . Special Melee Weapon . | . . . Unidentified Prototypes . | . . . Parts Lost 10 | . . 10 Power . | . . . Propulsion 2 | . . 2 Utility 1 | . . 1 Weapon 7 | . . 7 Highest Loss Streak 8 | . . 8 To Critical Strikes . | . . . Average Slot Usage (%) 98 | . 99 84 Engine 14 | . 14 14 Treads 27 | . 27 25 Device 12 | . 13 . Storage 14 | . 14 14 Protection 1 | . . 12 Energy Gun 24 | . 27 4 Impact Weapon 1 | . . 10 Naked Turns . | . . . Heaviest Build 36 | 14 34 36 Greatest Support 40 | 40 40 40 Greatest Overweight (x) . | . . . Average Overweight (x) . | . . . Largest Inventory Capacity 15 | 8 15 15 Average Capacity 11 | 8 10 15 Most Carried 14 | 6 14 14 Average Carried 9 | 2 10 11 Final Capacity 15 | 8 15 15 Final Carried 14 | 4 14 10 Class Distribution -------------------- 100% | Mutant Dominant Class ---------------- Mutant | -10/Materials Mutant | -10/Mines Resources | -11 -10 -10 ----------- Run | Yrd Mat Min Matter Collected 622 | 270 236 116 Remotely . | . . . Salvage Created 809 | 190 569 50 Parts 83 | 18 58 7 Haulers Intercepted 2 | . 2 . Recyclers Shooed . | . . . Parts Field Recycled . | . . . Retrieved Matter . | . . . Parts Self-Destructed . | . . . Prevented . | . . . Kills | -11 -10 -10 ------- Run | Yrd Mat Min Combat Hostiles Destroyed 16 | . 12 4 Guns 9 | . 8 1 AOE 7 | . 4 3 Classes Destroyed 10 | 2 7 1 Worker 2 | . 2 . Builder 1 | . 1 . Tunneler 6 | 5 1 . Hauler 2 | . 2 . Recycler 2 | 1 1 . Operator 1 | . 1 . Watcher 3 | . 3 . Swarmer 12 | . 9 3 Grunt 3 | . 3 . Demolisher 1 | . . 1 Best Kill Streak 5 | 3 5 3 Combat Bots Only 3 | . 3 3 Max Kills in Single Turn 3 | 1 3 3 Gunslinging . | . . . Exploded 3 | . 2 3 Melee . | . . . Uniques/NPCs Destroyed . | . . . Combat | -11 -10 -10 -------- Run | Yrd Mat Min Hostile Shots Fired 104 | . 51 53 Missed 22 | . 13 9 Damage Taken 1760 | . 328 1432 Core 250 | . 23 227 Absorbed by Shields . | . . . Regen/Repaired (Parts) 55 | . 55 . Core Remaining (%) 100 | 100 . . Volleys Fired 64 | 10 34 20 Largest 2 | 2 2 2 Hottest 95 | 60 90 95 Shots Fired 116 | 20 64 32 Gun 104 | 20 60 24 Cannon 7 | . . 7 Launcher 5 | . 4 1 Special . | . . . Kinetic 23 | 10 . 13 Thermal 13 | 10 . 3 Explosive 5 | . 4 1 Electromagnetic 75 | . 60 15 Robot Hit Streak 6 | 5 6 5 Robot Miss Streak 4 | 2 3 4 Penetration Max . | . . . Secondary Targets . | . . . Shots Hit Robots 58 | 12 30 16 Core Hits 41 | 7 24 10 Critical Kills . | . . . Critical Parts Destroyed . | . . . Critical Strikes 1 | . . 1 Corrupt 1 | . . 1 Melee Attacks 6 | . 2 4 Impact 6 | . 2 4 Slashing . | . . . Piercing . | . . . Sneak Attacks . | . . . Combat Hostiles . | . . . Follow-up Attacks . | . . . Damage Inflicted 1336 | 141 805 390 Guns 801 | 141 517 143 Cannons 70 | . . 70 Explosions 413 | . 261 152 Melee 25 | . . 25 Ramming 27 | . 27 . Kinetic 143 | 50 . 93 Thermal 148 | 91 20 37 Explosive 393 | . 241 152 Electromagnetic 600 | . 517 83 Impact 25 | . . 25 Slashing . | . . . Piercing . | . . . Highest Corruption . | . . . Average Corruption . | . . . Corruption Purged . | . . . Corruption Blocked . | . . . Overload Shots . | . . . Overflow Damage 30 | . 30 . Projectiles . | . . . Explosions 30 | . 30 . Melee . | . . . Knockbacks 4 | . . 4 Impact . | . . . Kinetic 4 | . . 4 Secondary . | . . . Self-Inflicted Damage 11 | . 11 . Shots 1 | . 1 . Rammed 4 | . 4 . Targets Rammed 5 | . 5 . Kicked . | . . . Crushed 1 | . 1 . Highest Temperature 231 | . 231 178 Average Temperature 77 | . 67 97 Received Heat Transfer 18 | . 18 . Siege Activations . | . . . Robots Corrupted . | . . . Combat Hostiles . | . . . Parts Fried 3 | . 3 . Impact Corruptions . | . . . Robots Melted . | . . . Combat Hostiles . | . . . Parts Melted . | . . . Heat Transferred 361 | 200 50 111 Parts Sabotaged . | . . . Parts Stolen . | . . . Parts Stripped . | . . . Power Chain Reactions 1 | . 1 . Alert | -11 -10 -10 ------- Run | Yrd Mat Min Peak Influence 179 | 30 179 95 Initial 21 | . 19 21 Average 67 | 15 74 40 Maximum Alert Level . | . . . Low Security (%) 100 | 100 100 100 Level 1 . | . . . Level 2 . | . . . Level 3 . | . . . Level 4 . | . . . Level 5 . | . . . High Security . | . . . Max Security . | . . . Squads Dispatched . | . . . Investigation . | . . . Extermination . | . . . Reinforcement . | . . . Assault . | . . . Garrison . | . . . Intercept . | . . . Searches Triggered . | . . . Construction Impeded . | . . . Haulers Reinforced . | . . . Active Scanning Responses . | . . . Cargo Convoy Interrupts . | . . . Stealth | -11 -10 -10 --------- Run | Yrd Mat Min Distress Signals . | . . . Communications Jammed . | . . . Distress Signals . | . . . Times Spotted 26 | . 19 7 Peak Tracking Total 4 | . 4 3 Tactical Retreats . | . . . Traps | -11 -10 -10 ------- Run | Yrd Mat Min Traps Triggered . | . . . Indirectly . | . . . Trap Hack Attempts . | . . . Triggered . | . . . Disarmed . | . . . Reprogrammed . | . . . Reused . | . . . Traps Extracted . | . . . Installed . | . . . Triggered . | . . . Machines | -11 -10 -10 ---------- Run | Yrd Mat Min Machines Disabled 2 | . 2 . Max in Single Turn 1 | . 1 . Machines Repaired . | . . . Machines Dismantled . | . . . Machines Sabotaged . | . . . Overloaded Fab Kills . | . . . Hacking | -11 -10 -10 --------- Run | Yrd Mat Min Machines Accessed 8 | . 8 . Terminals 7 | . 7 . Fabricators . | . . . Repair Stations 1 | . 1 . Recycling Units . | . . . Scanalyzers . | . . . Garrison Access . | . . . Total Hacks 23 | . 23 . Successful 9 | . 9 . Failed 14 | . 14 . Catastrophic 4 | . 4 . Database Lockouts . | . . . Manual 16 | . 16 . Terminals 20 | . 20 . Fabricators . | . . . Repair Stations 3 | . 3 . Recycling Units . | . . . Scanalyzers . | . . . Garrison Access . | . . . Terminal Hacks 7 | . 7 . Robot Analysis 1 | . 1 . Prototype ID Bank 4 | . 4 . Locate Traps 1 | . 1 . Zone Layout 1 | . 1 . Fabricator Hacks . | . . . Repair Station Hacks 2 | . 2 . Scan Component 1 | . 1 . Repair 1 | . 1 . Recycling Unit Hacks . | . . . Scanalyzer . | . . . Garrison Access Hacks . | . . . Unauthorized Hacks . | . . . Terminals . | . . . Fabricators . | . . . Repair Stations . | . . . Recycling Units . | . . . Scanalyzers . | . . . Garrison Access . | . . . Data Cores Recovered 1 | . 1 . Used 1 | . 1 . Hacking Detections 8 | . 8 . Full Trace Events . | . . . Feedback Events . | . . . Feedback Blocked . | . . . Robot Schematics Acquired . | . . . Robots Built . | . . . Authchips . | . . . Time . | . . . Total Robot Build Rating . | . . . Part Schematics Acquired . | . . . Parts Built . | . . . Authchips . | . . . Time . | . . . Total Part Build Rating . | . . . Parts Repaired 1 | . 1 . Time 26 | . 26 . Parts Recycled . | . . . Recycled Matter . | . . . Retrieved Matter . | . . . Retrieved Components . | . . . Parts Scanalyzed . | . . . Part Schematics Acquired . | . . . Parts Damaged . | . . . Bothacking | -11 -10 -10 ------------ Run | Yrd Mat Min Used RIF Installer . | . . . Robots Hacked . | . . . Non-combat . | . . . Combat . | . . . Robot Hacks Applied . | . . . Relay Couplers Released . | . . . Fabnet Peak Effective % . | . . . Robots Rewired . | . . . Allies Hacked . | . . . Hacks Repelled . | . . . Allies | -11 -10 -10 -------- Run | Yrd Mat Min Total Allies . | . . . Largest Group . | . . . Highest-Rated Group . | . . . Highest-Rated Ally . | . . . Total Orders . | . . . Ally Attacks . | . . . Total Damage . | . . . Kills . | . . . Allies Corrupted . | . . . Allies Melted . | . . . Intel | -11 -10 -10 ------- Run | Yrd Mat Min Robot Analysis Total 1 | . 1 . Derelict Logs Recovered . | . . . Drone Launches . | . . . Drone Recoveries . | . . . Exploration | -11 -10 -10 ------------- Run | Yrd Mat Min Turns Passed 2793 | 167 2353 273 Spaces Moved 1495 | 79 1297 119 Core . | . . . Treads 1495 | 79 1297 119 Legs . | . . . Wheels . | . . . Hover . | . . . Flight . | . . . Fastest Speed 160 | 160 160 160 Average Speed 160 | 160 160 160 Slowest Speed 160 | 160 160 160 Overloaded Moves . | . . . Propulsion Burnouts . | . . . Robots Hopped . | . . . Cave-ins Triggered . | . . . Exploration Rate (%) 43 | 5 96 29 Regions Visited 2 Branch Regions 1 Pre-discovered Areas . | . . . Known Exits Taken . | . . . Unknown Exits Taken 2 | 1 1 . Scrap Searched . | . . . Spaces Dug 2 | . 2 . Terrain Destroyed 31 | . 27 4 Melee 2 | . 2 . Projectile . | . . . AOE 29 | . 25 4 Terrain Rammed . | . . . Walls Destroyed . | . . . Machines Disabled . | . . . Actions | -11 -10 -10 --------- Run | Yrd Mat Min Total 1764 | 101 1502 161 Wait 121 | 3 118 . Move 1493 | 78 1296 119 Hop . | . . . Pick Up 22 | 2 15 5 Fast Attach 2 | 1 1 . Attach 11 | 2 . 9 Detach . | . . . Swap 24 | 1 19 4 Drop 16 | 4 12 . Fire 64 | 10 34 20 Melee 6 | . 2 4 Ram . | . . . Kick . | . . . Crush 5 | . 5 . Escape Stasis . | . . . Rewire . | . . . Trap . | . . . Miscellaneous . | . . . Route ------- -11/Scrapyard -10/Materials (discovered 6 exits: [*Mat x3] / [*Min x2] / [*Sub]) -10/Mines (discovered 1 exit: [*Mat]) History --------- Turn | Location | Event 16 | -11/Scrapyard | Discovered new exit (range 3) 168 | -11/Scrapyard | Entered Materials 310 | -10/Materials | Build established: Mutant 468 | -10/Materials | Discovered new exit (range 3) 783 | -10/Materials | Discovered new exit (range 15) 864 | -10/Materials | Discovered new exit (range 15) 1040 | -10/Materials | Discovered new exit (range 3) 1206 | -10/Materials | Repaired Lgt. Treads 1867 | -10/Materials | Discovered new exit (range 14) 2409 | -10/Materials | Discovered new exit (range 9) 2521 | -10/Materials | Entered Mines 2522 | -10/Mines | Assembled infested the area 2550 | -10/Mines | Core integrity fell below 50% 2585 | -10/Mines | Core integrity fell below 20% 2602 | -10/Mines | Lost 8 parts (2n1u5w) 2618 | -10/Mines | Discovered new exit (range 6) 2738 | -10/Mines | Found a hidden stash of uninstalled traps 2794 | -10/Mines | Destroyed by as-57845 with Assembled Rifle Last Messages --------------- 02613_ U-05 Engineer lays Concrete. 02617_ K-01 Serf collects debris. 02618_ EXIT=FOUND 02619_ K-01 Serf collects debris. 02631_ Acquired Huge Storage Unit. 02632_ K-01 Serf collects debris. 02633_ Acquired EM Pulse Gun. 02638_ K-01 Serf collects debris. 02641_ Acquired EM Pulse Gun. 02643_ K-01 Serf collects debris. 02655_ Acquired 20 matter. 02657_ K-01 Serf collects debris. 02663_ Acquired 20 matter. 02664_ K-01 Serf collects debris. 02669_ Acquired 20 matter. 02671_ Acquired 3 matter. 02671_ K-01 Serf collects debris. 02716_ U-05 Engineer builds a Wall. 02738_ A stash of uninstalled traps is collected here! 02781_ EM Pulse Gun destroyed. Map ----- +----------------------------------------------------+ | ?????????????????????????????????????????????????? | | ?????????????????????????????????????????????????? | | ?????????????????????????????????????????????????? | | ?????????????????????????????????????????????????? | | ?????????????????????????????????????????????????? | | ?????????????????????????????????????????????????? | | ?????????????????????????????????????????????????? | | ##???????????????????????????????????????????????? | | #???????????????????????????????????????????????? | | #???????????????????????????????????????????????? | | #???????????????????????????????????????????????? | | #???????????????????????!%#?????????????????????? | | #?????????????????????? =!?????????????????????? | | #??????????????????????? ?????????????????????? | | #??????????????????????? ?????????????????????? | | ##??????????????????????? ????#????????????????? | | ##????????????????????????=%???# ????????????????? | | ##??????????????????????? !### ?????????????????? | | ##?????????????????????? ! ?????????????????? | | #???????????????????????!%! ??????????????????? | | #???????????????????????**% ??????????????????? | | #?###???????????????????# #??????????????????? | | [##?# ???????????????????# ####???????????????? | | ##??# #????????????#####??# ????????????????? | | ###??# #????????????# #### #??????????????????? | | # #??# #????????????# a@a #??????????????????? | | # #??# #??????####??# """ ##?????????????????? | | #"#### ######## &##### """ ##????????????????? | | & & """ #????????????????? | | & ###### #?????????? | | # ###### #### #?????????? | | # #????# ### ##??## ######?????????? | | #????## ##?####???## #??????????????? | | ###?????####?????????# ##??????????????? | | ?????????????????????# #######???????????????? | | #???????????????????## ##?????????????????????? | | ?#????????????????????#####??????????????????????? | | ?????????????????????????????????????????????????? | | | | | | | | | | | | | | | | | | | | | | | | | +----------------------------------------------------+ Best States ------------- Heat Dissipation 25 Energy Generation 12 Energy Capacity 265 Matter Stores 300 Matter Capacity 300 Sight Range 16 Terrain Scan Density 10 Armor Coverage 150 Evasion (%) 40 Recoil Reduction 2 Item Schematics ----------------- None Robot Schematics ------------------ None Fabricated ------------ Nothing Alien Tech Used ----------------- None Achievements -------------- None Challenges ------------ None Game ------ Seed ExoskeletonServoInjector Manual? 0 Play Time 00:21:58 Cumulative 89.5 hours Start 2024.05.11 @ 00:03:21 End 2024.05.11 @ 00:25:23 Sessions 1 Manual Loads 0 Difficulty Rogue Special Mode None Game No. 54 Rogue 54 Adventurer 0 Explorer 0 Win Type - Total 0 Types 0/0/0/0/0/0/0/0/0 Lore% 33 Gallery% 46 Achievement% 36 Wizard Run 0 Options --------- Layout 0 ASCII 0 Keyboard 0 Movement Numpad Keybinds 1 Fullscreen 1 Font 18/SmallcapsGlow Map View 76x50 Zoom Use 0% Tactical HUD 1 Map Filters NONE Filters NONE Steam 1 RUN: 2125ec04-36ad-4a5a-9e36-4837bf6c4334